bitfinex/quotes_ETHUSD_20250708
["timestamp","ask_amount","ask_price","bid_price","bid_amount"]
[1751973751026,1.43233275,2582.3,2582.1,0.001]
[1751973752537,1.39240326,2582.2,2582.1,0.001]
[1751973752827,1.43113759,2582.3,2582.1,0.001]
[1751973757736,0.03873433,2582.3,2582.1,0.001]
[1751973757905,1.43117798,2582.3,2582.1,0.001]
[1751973761238,1.43317798,2582.3,2582.1,0.001]
[1751973762144,0.04073433,2582.3,2582.1,0.001]
[1751973762354,1.43359757,2582.3,2582.1,0.001]
[1751973768057,0.04073433,2582.3,2582.1,0.001]
[1751973768224,0.002,2582.3,2582.1,0.001]
[1751973768751,0.002,2582.3,2582.1,3.87378716]
[1751973769147,0.002,2582.3,2582.1,0.001]
[1751973771057,0.002,2582.3,2582.1,3.87373566]
[1751973772254,0.002,2582.3,2582.2,4.63746671]
[1751973772556,0.002,2582.3,2582.2,4.83106671]
[1751973774633,0.002,2582.3,2582.2,0.9584]
[1751973775464,0.002,2582.3,2582.2,0.1936]
[1751973776341,0.002,2582.3,2582.1,0.1946]
[1751973777548,1.39528863,2582.3,2582.1,0.1946]
[1751973777762,0.03873433,2582.2,2582.1,0.1946]
[1751973778347,1.43402296,2582.3,2582.1,0.1946]
[1751973778881,0.04073433,2582.3,2582.1,0.1946]
[1751973779579,1.43420519,2582.3,2582.1,0.1946]
[1751973780967,0.04073433,2582.3,2582.1,0.1946]
[1751973781169,0.002,2582.3,2582.1,0.1946]
[1751973781362,0.03873433,2582.2,2582.1,0.1946]
[1751973784184,4.44215256,2582.2,2582.1,0.001]
[1751973784347,6.26193758,2582.2,2582.1,0.001]
[1751973785459,6.22320325,2582.2,2582.1,0.001]
[1751973785662,6.22355332,2582.2,2582.1,0.001]
[1751973786184,6.26228765,2582.2,2582.1,0.001]
[1751973786753,7.85255258,2582.2,2582.1,0.001]
[1751973789456,31.70655258,2582.2,2582.1,0.001]
[1751973789770,30.82313164,2582.2,2582.1,0.001]
[1751973789968,34.73353891,2582.2,2582.1,0.001]
[1751973790276,34.7311462,2582.2,2582.1,0.001]
[1751973790474,35.89863893,2582.2,2582.1,0.001]
[1751973791083,36.89863893,2582.2,2582.1,0.001]
[1751973791664,14.42281669,2582.1,2582.0,0.001]
[1751973791895,28.46865862,2582.1,2582.0,0.001]
[1751973793291,24.97869636,2582.1,2582.0,0.001]
[1751973793672,28.46865862,2582.1,2582.0,0.001]
[1751973793907,32.86869636,2582.1,2582.0,0.001]
[1751973794273,36.35865862,2582.1,2582.0,0.001]
[1751973794574,36.86231539,2582.1,2582.0,1e-08]
[1751973794791,15.21051669,2581.9,2581.8,1e-08]
[1751973795007,43.65721114,2581.9,2581.8,1e-08]
[1751973795601,46.24399901,2581.9,2581.8,1e-08]
[1751973795871,46.24399901,2581.9,2581.1,0.001]
[1751973795872,4.69986705,2581.2,2581.1,0.001]
[1751973796076,24.25276437,2581.2,2581.1,0.001]
[1751973796291,34.25276437,2581.2,2581.1,0.001]
[1751973797405,21.69734456,2581.2,2581.1,0.001]
[1751973797570,11.86017751,2581.2,2581.1,0.001]
[1751973797777,20.03076705,2581.2,2581.1,0.001]
[1751973798083,21.41938649,2581.2,2581.1,0.001]
[1751973799196,27.1851063,2581.2,2581.1,0.001]
[1751973800694,28.0112063,2581.2,2581.1,0.001]
[1751973800894,30.58119152,2581.2,2581.1,0.001]
[1751973801096,29.19257208,2581.2,2581.1,0.001]
[1751973801315,30.57918552,2581.2,2581.1,0.001]
[1751973803694,18.02436571,2581.2,2581.1,0.001]
[1751973803899,16.1556,2581.2,2581.1,0.001]
[1751973804437,5.76571981,2581.5,2581.1,0.7962]
[1751973804596,7.38674992,2581.4,2581.1,0.7962]
[1751973804801,6.00073433,2581.4,2581.1,0.7962]
[1751973807216,5.962,2581.3,2581.1,0.7962]
[1751973807410,0.03873433,2581.2,2581.1,0.7962]
[1751973808536,0.03873433,2581.3,2581.1,0.7962]
[1751973809535,6.42378757,2581.3,2581.1,0.001]
[1751973809833,11.28534076,2581.3,2581.1,0.001]
[1751973810046,11.24660643,2581.3,2581.1,0.001]
[1751973810227,0.03873433,2581.2,2581.1,0.001]
[1751973811008,2.15075856,2581.2,2581.1,0.001]
[1751973811913,11.98592561,2581.2,2581.1,0.001]
[1751973812206,8.07302423,2581.2,2581.1,0.001]
[1751973812606,5.961,2581.2,2581.1,0.001]
[1751973812814,5.99973433,2581.2,2581.1,0.001]
[1751973813508,0.03873433,2581.2,2581.1,0.001]
[1751973814758,5.96,2581.3,2581.1,4.64300421]
[1751973815058,0.1936,2581.5,2581.1,4.64295852]
[1751973815351,0.03873433,2581.4,2581.1,4.64295852]
[1751973816024,0.03873433,2581.4,2581.1,0.7687]
[1751973818174,0.03873433,2581.4,2581.1,4.64300355]
[1751973818337,0.03873433,2581.4,2581.1,0.7687]
[1751973819249,1.42868317,2581.4,2581.1,0.7687]
[1751973819543,11.42868317,2581.4,2581.1,0.7687]
[1751973819749,1.38994884,2581.3,2581.1,0.7687]
[1751973819960,1.42868317,2581.4,2581.1,4.64300217]
[1751973820173,1.0,2581.3,2581.1,4.64300217]
[1751973821852,2.38994884,2581.3,2581.1,4.64300217]
[1751973822052,1.0,2581.3,2581.1,4.64300217]
[1751973824548,1.62594142,2581.5,2581.4,3.87386689]
[1751973824549,1.39360709,2581.5,2581.4,3.87386689]
[1751973824753,1.39360709,2581.7,2581.6,3.87356678]
[1751973824948,1.39360709,2581.7,2581.5,4.69072581]
[1751973825184,1.39360709,2581.6,2581.5,4.69072581]
[1751973825390,1.39360709,2581.8,2581.6,3.87351177]
[1751973825588,1.39360709,2581.7,2581.6,3.87351177]
[1751973825881,1.39360709,2581.8,2581.7,3.87341674]
[1751973826251,1.39360709,2581.9,2581.7,3.87341674]
[1751973826463,1.39360709,2581.8,2581.7,3.87341674]
[1751973826784,0.002,2581.8,2581.7,3.87341674]
[1751973826984,1.39560709,2581.8,2581.7,3.87341674]
[1751973827150,0.002,2581.8,2581.7,3.87341674]
[1751973827345,1.39560709,2581.8,2581.7,3.87341674]
[1751973827550,0.002,2581.8,2581.7,3.87341674]
[1751973828923,0.002,2581.8,2581.6,0.1936]
[1751973829704,0.002,2581.8,2581.6,4.06716143]
[1751973829873,0.002,2581.8,2581.6,0.1936]
[1751973830308,0.002,2581.8,2581.6,4.06715727]
[1751973831282,0.002,2581.8,2581.6,4.06715324]
[1751973831601,0.002,2581.8,2581.6,0.1936]
[1751973831781,5.80645414,2581.8,2581.6,0.1936]
[1751973831988,1.39186391,2581.7,2581.6,0.1936]
[1751973832596,0.04073433,2581.8,2581.6,0.1936]
[1751973835408,2.14786308,2581.8,2581.6,0.1936]
[1751973835603,1.39186391,2581.7,2581.6,0.1936]
[1751973836312,0.04073433,2581.8,2581.6,0.1936]
[1751973836516,0.002,2581.8,2581.6,0.1936]
[1751973837287,0.002,2581.8,2581.7,0.7623]
[1751973841061,0.002,2581.8,2581.7,4.63571674]
[1751973841213,0.002,2581.8,2581.7,5.50987613]
[1751973846250,0.002,2581.8,2581.7,11.46087613]
[1751973847961,0.002,2581.8,2581.7,6.7133]
[1751973848132,0.002,2581.8,2581.7,5.95]
[1751973848447,0.002,2581.8,2581.2,3.8740504]
[1751973848448,9.67972743,2581.8,2581.2,3.8740504]
[1751973848646,5.76571981,2581.6,2581.4,5.949]
[1751973848846,0.03873433,2581.5,2581.4,5.949]
[1751973849036,0.84863433,2581.5,2581.3,0.1936]
[1751973849546,0.84863433,2581.5,2581.3,6.1426]
[1751973849547,0.03873433,2581.5,2581.3,6.1426]
[1751973851452,5.76571981,2581.4,2581.2,5.949]
[1751973851657,0.03873433,2581.3,2581.1,0.1946]
[1751973851857,0.03873433,2581.3,2581.1,6.1436]
[1751973852755,0.03873433,2581.3,2581.1,0.001]
[1751973852957,1.39394686,2581.3,2581.1,0.001]
[1751973853361,0.03873433,2581.3,2581.1,0.001]
[1751973855348,0.03873433,2581.3,2581.1,3.87528868]
[1751973855549,1.43190301,2581.5,2581.1,0.1946]
[1751973856674,1.0,2581.4,2581.1,0.1946]
[1751973856863,0.03873433,2581.3,2581.1,0.1946]
[1751973857063,0.03873433,2581.4,2581.1,0.1946]
[1751973860975,1.0,2581.3,2581.1,0.1946]
[1751973861177,0.03873433,2581.2,2581.1,0.1946]
[1751973862281,0.03873433,2581.2,2581.1,0.001]
[1751973862482,2.30993872,2581.2,2581.1,0.001]
[1751973864049,1.0,2581.3,2581.1,0.001]
[1751973864688,1.4308643,2581.4,2581.1,0.001]
[1751973865188,0.03873433,2581.4,2581.1,0.001]
[1751973866902,3.91263347,2581.4,2581.1,0.001]
[1751973867103,1.0,2581.2,2581.1,0.001]
[1751973869600,1.03873433,2581.2,2581.1,0.001]
[1751973872477,1.0,2581.2,2581.1,0.001]
[1751973874007,6.09384492,2581.2,2581.1,0.001]
[1751973874210,7.52462366,2581.2,2581.1,0.001]
[1751973875394,6.13257925,2581.2,2581.1,0.001]
[1751973875596,7.52552872,2581.2,2581.1,0.001]
[1751973877803,7.48679439,2581.2,2581.1,0.001]
[1751973879309,19.37479439,2581.2,2581.1,0.001]
[1751973879681,37.26479439,2581.2,2581.1,0.001]
[1751973881778,10.71962734,2581.2,2581.1,0.001]
[1751973881986,9.28294947,2581.2,2581.1,0.001]
[1751973883781,13.15711652,2581.2,2581.1,0.001]
[1751973884182,19.10011652,2581.2,2581.1,0.001]
[1751973885251,19.87211652,2581.2,2581.1,0.001]
[1751973885386,29.87211652,2581.2,2581.1,0.001]
[1751973886508,30.87211652,2581.2,2581.1,0.001]
[1751973889230,30.87111652,2581.2,2581.1,0.001]
[1751973894028,33.18814428,2581.2,2581.1,0.001]
[1751973901531,33.18514428,2581.2,2581.1,0.001]
[1751973903658,30.09611652,2581.2,2581.1,0.001]
[1751973904255,32.41314428,2581.2,2581.1,0.001]
[1751973904456,30.09611652,2581.2,2581.1,0.001]
[1751973905073,32.41314428,2581.2,2581.1,0.001]
[1751973913979,12.59997723,2581.2,2581.1,0.001]
[1751973914185,2.39294947,2581.2,2581.1,0.001]
[1751973914385,2.4316838,2581.2,2581.1,0.001]
[1751973917056,6.30585085,2581.2,2581.1,0.001]
[1751973917372,14.27907807,2581.2,2581.1,0.001]
[1751973917691,14.24034374,2581.2,2581.1,0.001]
[1751973919987,8.15866928,2581.2,2581.1,0.001]
[1751973920558,1.39294947,2581.2,2581.1,0.001]
[1751973920900,6.16633433,2581.3,2581.1,0.7811]
[1751973921057,1.39294947,2581.2,2581.1,0.7811]
[1751973921604,1.39294947,2581.2,2581.1,0.001]
[1751973921605,7.15866928,2581.2,2581.1,0.001]
[1751973921785,11.78876471,2581.2,2581.1,0.001]
[1751973922295,21.78876471,2581.2,2581.1,0.001]
[1751973924192,29.67876471,2581.2,2581.1,0.001]
[1751973925567,31.99579247,2581.2,2581.1,0.001]
[1751973925892,32.99579247,2581.2,2581.1,0.001]
[1751973939205,32.40514428,2581.2,2581.1,0.001]
[1751973939412,30.08811652,2581.2,2581.1,0.001]
[1751973941115,24.15711652,2581.2,2581.1,0.001]
[1751973941310,26.47414428,2581.2,2581.1,0.001]
[1751973941612,24.15711652,2581.2,2581.1,0.001]
[1751973941983,20.28294947,2581.2,2581.1,0.001]
[1751973942182,10.28294947,2581.2,2581.1,0.8315]
[1751973942394,10.47654947,2581.2,2581.1,0.8315]
[1751973942593,10.28294947,2581.2,2581.1,0.8315]
[1751973946384,10.28294947,2581.2,2581.1,1.0251]
[1751973947835,2.39294947,2581.2,2581.1,1.0251]
[1751973948022,2.4316838,2581.2,2581.1,1.0251]
[1751973948521,2.39294947,2581.2,2581.1,1.0251]
[1751973949227,2.4316838,2581.2,2581.1,1.0251]
[1751973951729,2.39294947,2581.2,2581.1,1.0251]
[1751973953625,1.0,2581.2,2581.1,1.0251]
[1751973957347,1.4316838,2581.3,2581.1,1.0251]
[1751973957506,9.30396314,2581.3,2581.1,0.001]
[1751973957706,1.39294947,2581.2,2581.1,0.001]
[1751973958439,1.4316838,2581.3,2581.1,0.001]
[1751973959622,1.4316838,2581.3,2581.1,0.1946]
[1751973963617,11.0714664,2581.3,2581.1,0.001]
[1751973963816,1.39294947,2581.2,2581.1,0.001]
[1751973964017,2.39294947,2581.2,2581.1,0.001]
[1751973964932,2.4316838,2581.2,2581.1,0.001]
[1751973965854,1.4316838,2581.2,2581.1,0.001]
[1751973969358,0.03873433,2581.2,2581.1,0.001]
[1751973969659,1.4316838,2581.2,2581.1,0.001]
[1751973969861,2.4316838,2581.2,2581.1,0.001]
[1751973970656,0.03873433,2581.2,2581.1,0.001]
[1751973970860,1.4316838,2581.2,2581.1,0.001]
[1751973971043,0.03873433,2581.2,2581.1,0.001]
[1751973971246,1.4316838,2581.2,2581.1,0.001]
[1751973971557,0.03873433,2581.2,2581.1,0.001]
[1751973971758,1.4316838,2581.2,2581.1,0.001]
[1751973972559,1.39294947,2581.2,2581.1,0.001]
[1751973973962,1.4316838,2581.2,2581.1,0.001]
[1751973974260,16.87125121,2581.2,2581.1,0.001]
[1751973974462,16.83251688,2581.2,2581.1,0.001]
[1751973974829,3.13204983,2581.2,2581.1,0.001]
[1751973975037,2.58654947,2581.2,2581.1,0.001]
[1751973975242,1.58654947,2581.2,2581.1,0.001]
[1751973976363,1.4316838,2581.2,2581.1,0.001]
[1751973976563,1.39294947,2581.2,2581.1,0.8032]
[1751973979567,1.39294947,2581.3,2581.1,4.67751715]
[1751973979771,1.39294947,2581.2,2581.1,4.67751715]
[1751973980073,1.0,2581.2,2581.1,4.67751715]
[1751973980372,2.39294947,2581.2,2581.1,4.67751715]
[1751973980873,1.0,2581.2,2581.1,4.67751715]
[1751973981166,2.39294947,2581.2,2581.1,4.67751715]
[1751973981538,1.0,2581.2,2581.1,4.67751715]
[1751973981744,2.39294947,2581.2,2581.1,4.67751715]
[1751973982573,2.39294947,2581.2,2581.1,0.8032]
[1751973983873,2.39294947,2581.2,2581.1,0.001]
[1751973984970,2.4316838,2581.2,2581.1,0.001]
[1751973985864,2.39294947,2581.2,2581.1,0.001]
[1751973991291,2.39594228,2581.2,2581.1,0.001]
[1751973991474,6.27010933,2581.2,2581.1,0.001]
[1751973991676,8.09667344,2581.2,2581.1,0.001]
[1751973992961,13.86239325,2581.2,2581.1,0.001]
[1751973994474,4.22250639,2581.2,2581.1,0.001]
[1751973994796,4.26124072,2581.2,2581.1,0.001]
[1751973994997,8.13540777,2581.2,2581.1,0.001]
[1751973995195,8.09667344,2581.2,2581.1,0.001]
[1751973999986,13.86239325,2581.2,2581.1,0.001]
[1751974002111,9.9882262,2581.2,2581.1,0.001]
[1751974002484,13.86239325,2581.2,2581.1,0.001]
[1751974004272,23.86239325,2581.2,2581.1,0.001]
[1751974004472,24.66639325,2581.2,2581.1,0.001]
[1751974005807,32.55639325,2581.2,2581.1,0.001]
[1751974006108,35.07246295,2581.2,2581.1,0.001]
[1751974006796,32.75543519,2581.2,2581.1,0.001]
[1751974007191,32.55639325,2581.2,2581.1,0.001]
[1751974008683,33.10639325,2581.2,2581.1,0.001]
[1751974011803,39.02239325,2581.2,2581.1,0.001]
[1751974012777,37.62645097,2581.2,2581.1,0.001]
[1751974012982,39.02055743,2581.2,2581.1,0.001]
[1751974016799,39.21947894,2581.2,2581.1,0.001]
[1751974017606,15.37381715,2581.1,2581.0,0.001]
[1751974017807,19.10160965,2581.1,2581.0,0.001]
[1751974020029,19.10110793,2581.1,2581.0,0.001]
[1751974020699,15.21896751,2580.8,2580.7,0.001]
[1751974021005,31.77671841,2580.8,2580.7,0.001]
[1751974024331,28.29229206,2580.8,2580.7,0.001]
[1751974024497,30.11885617,2580.8,2580.7,0.001]
[1751974024695,38.00885617,2580.8,2580.7,0.001]
[1751974026515,38.00885617,2580.8,2580.7,1e-08]
[1751974026716,42.89818252,2580.8,2580.7,1e-08]
[1751974027024,3.87581876,2580.1,2580.0,0.001]
[1751974027192,26.98687764,2580.1,2580.0,0.001]
[1751974027394,35.38814331,2580.1,2580.0,0.001]
[1751974027996,37.70857589,2580.1,2580.0,0.001]
[1751974028198,35.38814331,2580.1,2580.0,0.001]
[1751974028410,37.21470742,2580.1,2580.0,0.001]
[1751974029095,37.4065737,2580.1,2580.0,0.001]
[1751974029302,38.2297737,2580.1,2580.0,0.001]
[1751974030631,38.52056275,2580.1,2580.0,0.001]
[1751974037136,38.71981538,2580.1,2580.0,0.001]
[1751974038239,41.04024796,2580.1,2580.0,0.001]
[1751974044138,42.04024796,2580.1,2580.0,0.001]
[1751974044719,41.84838168,2580.1,2580.0,0.001]
[1751974046454,39.5279491,2580.1,2580.0,0.001]
[1751974048260,3.87596899,2580.0,2579.9,0.001]
[1751974048419,21.78636993,2580.0,2579.9,0.001]
[1751974048619,21.7476356,2580.0,2579.9,0.001]
[1751974049256,19.42725977,2580.0,2579.9,0.001]
[1751974050936,20.87325977,2580.0,2579.9,0.001]
[1751974051461,28.76325977,2580.0,2579.9,0.001]
[1751974053145,32.24390865,2580.0,2579.9,0.001]
[1751974056292,9.64227206,2579.7,2579.4,0.7592]
[1751974056468,13.44693907,2579.6,2579.4,0.7592]
[1751974056672,13.21460474,2579.5,2579.4,0.7592]
[1751974057771,17.09132503,2579.5,2579.4,0.7592]
[1751974058090,19.44018818,2579.5,2579.4,0.7592]
[1751974060259,17.09132503,2579.5,2579.4,0.7592]
[1751974060462,17.09132503,2579.5,2579.4,0.001]
[1751974061458,17.09467642,2579.5,2579.4,0.001]
[1751974064460,19.42173909,2579.5,2579.4,0.001]
[1751974067099,13.21795613,2579.5,2579.4,0.8246]
[1751974067306,17.09467642,2579.5,2579.4,0.8246]
[1751974076010,13.21795613,2579.5,2579.4,0.8246]
[1751974076911,17.09467642,2579.5,2579.4,0.8246]
[1751974080188,21.71879324,2579.5,2579.4,0.8246]
[1751974081724,21.71861891,2579.5,2579.4,0.8246]
[1751974083426,24.04568158,2579.5,2579.4,0.8246]
[1751974085842,15.54484447,2579.5,2579.4,0.8246]
[1751974086141,13.2177818,2579.5,2579.4,0.8246]
[1751974091540,1.3967818,2579.5,2579.4,4.70147059]
[1751974091745,1.3967818,2579.5,2579.4,5.37240771]
[1751974093474,1.3967818,2579.6,2579.4,4.54880771]
[1751974093631,5.904,2579.7,2579.5,0.7983]
[1751974093833,1.39619961,2579.6,2579.5,0.7983]
[1751974094125,1.39619961,2579.6,2579.5,1.72789072]
[1751974096937,1.39619961,2579.6,2579.5,5.60461101]
[1751974097148,1.39619961,2579.6,2579.5,1.72789072]
[1751974097354,5.902,2579.7,2579.5,5.60461101]
[1751974097582,1.39619961,2579.6,2579.5,5.60461101]
[1751974098273,1.39619961,2579.6,2579.5,1.72789072]
[1751974099586,2.39619961,2579.7,2579.5,1.72789072]
[1751974100703,1.39452416,2579.6,2579.5,1.72789072]
[1751974100905,1.0,2579.7,2579.5,1.72789072]
[1751974100906,2.39452416,2579.7,2579.5,5.60460077]
[1751974102279,2.39452416,2579.7,2579.5,1.72789072]
[1751974102806,2.39452416,2579.7,2579.5,5.6046023]
[1751974103003,2.39452416,2579.7,2579.6,4.84416963]
[1751974103175,1.0,2579.7,2579.6,1.16119962]
[1751974103375,2.39452416,2579.7,2579.6,1.16119962]
[1751974103601,2.39452416,2579.7,2579.6,0.1936]
[1751974107494,2.39452416,2579.7,2579.6,4.07017001]
[1751974108197,2.39452416,2579.7,2579.6,0.1936]
[1751974112822,2.39452416,2579.7,2579.6,1.017]
[1751974113109,7.29552416,2579.9,2579.6,1.017]
[1751974113306,1.39455555,2579.8,2579.6,1.017]
[1751974113515,1.39455555,2579.8,2579.6,0.8234]
[1751974113676,1.39455555,2579.8,2579.7,0.1936]
[1751974118005,1.39455555,2579.8,2579.4,0.001]
[1751974118006,3.29103735,2579.8,2579.4,0.001]
[1751974118213,8.49875425,2579.6,2579.4,0.1946]
[1751974118893,17.06918622,2579.5,2579.4,0.1946]
[1751974119525,17.06918622,2579.5,2579.4,0.001]
[1751974121209,13.19246593,2579.5,2579.4,0.001]
[1751974121398,17.06918622,2579.5,2579.4,0.001]
[1751974121599,19.18312833,2579.5,2579.4,0.001]
[1751974131857,19.18312833,2579.5,2579.4,0.7915]
[1751974131858,1.39546593,2579.5,2579.4,0.7915]
[1751974132155,1.39456489,2579.5,2579.4,0.9851]
[1751974132353,1.39456489,2579.6,2579.4,0.9851]
[1751974132648,1.39456489,2579.6,2579.4,0.7915]
[1751974132849,1.39456489,2579.6,2579.5,0.1936]
[1751974134755,7.29056489,2579.7,2579.5,0.1936]
[1751974134952,1.39456489,2579.6,2579.5,0.1936]
[1751974144966,7.28856489,2579.7,2579.5,0.1936]
[1751974145265,1.39456489,2579.6,2579.5,0.1936]
[1751974159398,1.39456489,2579.6,2579.5,0.1928]
[1751974161889,1.39716629,2579.6,2579.5,0.1928]
[1751974171677,3.82504463,2579.6,2579.5,0.1928]
[1751974172077,7.70161464,2579.6,2579.5,0.1928]
[1751974172386,7.70161464,2579.6,2579.4,0.1946]
[1751974172586,1.39716629,2579.5,2579.4,0.1946]
[1751974172790,2.20550062,2579.5,2579.4,0.001]
[1751974173004,7.81459272,2579.5,2579.4,0.001]
[1751974173174,17.81459272,2579.5,2579.4,0.001]
[1751974173497,17.77585839,2579.5,2579.4,0.001]
[1751974178518,13.8991381,2579.5,2579.4,0.001]
[1751974178892,17.77585839,2579.5,2579.4,0.001]
[1751974180119,13.8991381,2579.5,2579.4,0.001]
[1751974180724,17.77585839,2579.5,2579.4,0.001]
[1751974181492,13.8991381,2579.5,2579.4,0.001]
[1751974182605,17.77585839,2579.5,2579.4,0.001]
[1751974191047,17.77585839,2579.5,2579.4,0.0002]
[1751974191546,20.10292106,2579.5,2579.4,0.0002]
[1751974197431,20.10492106,2579.5,2579.4,0.0002]
[1751974197953,19.33532106,2579.5,2579.4,0.0002]
[1751974198162,23.95800814,2579.5,2579.4,0.0002]
[1751974200433,21.63094547,2579.5,2579.4,0.0002]
[1751974200633,17.75422518,2579.5,2579.4,0.0002]
[1751974200858,21.63094547,2579.5,2579.4,0.0002]
[1751974202763,17.75422518,2579.5,2579.4,0.0002]
[1751974202950,20.08200489,2579.5,2579.4,0.0002]
[1751974204163,20.08175214,2579.5,2579.4,0.0002]
[1751974205160,1.39891354,2579.5,2579.4,0.7502]
[1751974205338,1.39891354,2579.5,2579.4,4.82067059]
[1751974205756,1.39891354,2579.5,2579.4,4.85943929]
[1751974206140,0.002,2579.5,2579.4,4.85943929]
[1751974208341,0.002,2579.5,2579.4,5.40943929]
[1751974208644,0.002,2579.5,2579.4,7.65482657]
[1751974209063,1e-08,2579.5,2579.4,7.65482657]
[1751974209458,1e-08,2579.5,2579.4,17.65482657]
[1751974209676,1e-08,2579.5,2579.4,17.61605787]
[1751974210367,0.002,2579.9,2579.8,3.87626947]
[1751974210544,0.002,2579.9,2579.8,11.40719847]
[1751974210743,0.002,2579.9,2579.8,11.56203578]
[1751974213453,2.16831354,2580.9,2580.5,3.87509382]
[1751974213669,0.002,2581.0,2580.7,3.87482951]
[1751974213875,0.002,2581.0,2580.8,0.1936]
[1751974214073,0.002,2581.0,2580.8,4.06833107]
[1751974214250,0.002,2581.0,2580.6,10.55531582]
[1751974214457,0.002,2581.0,2580.9,0.1936]
[1751974216484,0.002,2581.0,2580.9,0.23234617]
[1751974216650,0.002,2581.0,2580.9,0.1936]
[1751974216850,0.002,2581.0,2580.9,4.10696355]
[1751974217486,0.002,2581.0,2580.9,4.93856355]
[1751974217659,0.002,2581.0,2580.9,6.4080943]
[1751974217858,0.002,2581.0,2580.9,6.36934813]
[1751974223556,0.002,2581.0,2580.9,1.66313075]
[1751974223788,15.77851444,2581.0,2580.9,0.1936]
[1751974229167,10.002,2581.0,2580.9,0.1936]
[1751974229365,0.002,2581.0,2580.9,0.1936]
[1751974232871,10.002,2581.0,2580.9,0.1936]
[1751974234095,0.002,2581.0,2580.9,0.1936]
[1751974235414,1.39239485,2581.0,2580.9,0.1936]
[1751974237722,0.7884,2580.9,2579.9,0.8039]
[1751974237900,0.7884,2580.9,2580.3,0.1936]
[1751974237901,5.77651444,2580.4,2580.3,0.1936]
[1751974238415,7.16909992,2580.4,2580.3,0.1936]
[1751974238582,1.39258548,2580.4,2580.3,0.1936]
[1751974238781,6.05622729,2580.5,2580.3,0.1936]
[1751974238988,1.39258548,2580.4,2580.3,0.1936]
[1751974240014,2.18098548,2580.5,2580.3,0.1936]
[1751974240217,6.05628182,2580.5,2580.3,0.1936]
[1751974240515,1.39258548,2580.4,2580.3,0.1936]
[1751974240897,2.18098548,2580.5,2580.3,0.1936]
[1751974242114,7.16909992,2580.4,2580.3,0.1936]
[1751974242887,21.04446807,2580.4,2580.3,0.1936]
[1751974243512,21.04446807,2580.4,2579.4,3.87707056]
[1751974243513,0.7825,2580.2,2579.4,0.8147]
[1751974243712,3.87596899,2580.0,2579.9,0.1936]
[1751974243926,5.26855447,2580.0,2579.9,0.1936]
[1751974244087,11.04506891,2580.0,2579.4,4.69147304]
[1751974244290,1.39258548,2579.9,2579.7,0.1936]
[1751974244494,10.62835008,2580.2,2579.7,0.1936]
[1751974244693,1.39198589,2580.1,2579.7,0.1936]
[1751974246711,1.39198589,2580.1,2579.8,3.87616149]
[1751974246912,1.39198589,2580.1,2579.9,0.1936]
[1751974247515,1.39198589,2580.2,2579.9,0.1936]
[1751974247710,1.39198589,2580.2,2579.9,4.94434343]
[1751974247914,1.39198589,2580.2,2580.1,0.1936]
[1751974248580,10.0,2580.3,2580.1,0.1936]
[1751974251197,13.87554165,2580.3,2580.1,0.1936]
[1751974251399,1.39013298,2580.2,2580.1,0.1936]
[1751974251600,1.42886731,2580.2,2580.0,0.1936]
[1751974258214,1.39013298,2580.2,2580.0,0.1936]
[1751974259221,0.03873433,2580.1,2580.0,0.1936]
[1751974259520,5.81524877,2580.2,2579.8,0.1936]
[1751974259911,5.81524877,2580.2,2579.8,4.06986656]
[1751974260106,5.81524877,2580.2,2579.8,0.1936]
[1751974260310,2.1959498,2580.1,2579.8,0.1936]
[1751974260497,2.1959498,2580.1,2579.4,3.87697583]
[1751974260498,10.0,2579.8,2579.4,3.87697583]
[1751974260701,10.0,2579.8,2579.7,0.1936]
[1751974260909,21.84909024,2579.8,2579.7,0.1936]
[1751974261108,3.87648533,2579.7,2579.4,0.0002]
[1751974261309,0.03873433,2579.6,2579.4,0.0002]
[1751974261513,5.81524877,2579.6,2579.4,0.0002]
[1751974263230,0.1936,2579.7,2579.4,0.0002]
[1751974263436,0.03873433,2579.6,2579.4,0.0002]
[1751974263599,1.39136981,2579.9,2579.4,4.37382765]
[1751974263801,1.58496981,2579.9,2579.5,3.87671508]
[1751974265202,1.39136981,2579.8,2579.5,3.87671508]
[1751974265529,1.58496981,2579.9,2579.5,3.87671508]
[1751974266247,1.58496981,2579.9,2579.6,3.8765042]
[1751974266401,1.39136981,2579.9,2579.7,4.06995055]
[1751974266601,1.39136981,2580.0,2579.7,4.06995055]
[1751974267298,1.39136981,2579.9,2579.7,4.06995055]
[1751974267500,1.39136981,2580.0,2579.7,4.06995055]
[1751974267704,1.39136981,2579.9,2579.7,4.06995055]
[1751974267906,1.39136981,2580.0,2579.7,4.06995055]
[1751974268138,1.39136981,2579.9,2579.7,4.06995055]
[1751974268350,1.39136981,2580.0,2579.7,4.06995055]
[1751974268538,1.39136981,2579.9,2579.7,4.06995055]
[1751974268732,1.39136981,2580.0,2579.7,4.06995055]
[1751974269034,1.39136981,2579.9,2579.7,4.06995055]
[1751974269240,1.39136981,2580.0,2579.7,4.06995055]
[1751974269544,1.39136981,2579.9,2579.7,4.06995055]
[1751974269746,1.39136981,2580.0,2579.7,4.06995055]
[1751974269908,1.39136981,2579.9,2579.7,4.06995055]
[1751974270103,1.39136981,2580.0,2579.7,0.1936]
[1751974270302,1.39136981,2579.9,2579.7,0.1936]
[1751974270545,1.39136981,2580.0,2579.7,4.07001954]
[1751974270836,1.39136981,2579.9,2579.7,4.07001954]
[1751974271005,1.39136981,2580.0,2579.7,4.07001954]
[1751974271206,1.39136981,2579.9,2579.7,4.07001954]
[1751974271436,1.39136981,2579.8,2579.7,0.1936]
[1751974271739,1.39136981,2580.0,2579.7,0.1936]
[1751974271940,1.39136981,2579.9,2579.7,0.1936]
[1751974272150,1.39136981,2579.8,2579.7,0.1936]
[1751974273943,11.43010414,2579.8,2579.7,0.1936]